fUST/lending_fUST_20250621
["ID","MTS","AMOUNT","RATE_DAILY","PERIOD"]
[366841338,1750502826229,-2720.48635245,0.00019587,2]
[366841339,1750502826251,-162.62661365,0.00019603,2]
[366841340,1750502826275,-162.62661365,0.00019662,2]
[366841341,1750502826297,-162.62661365,0.0001972,2]
[366841342,1750502826320,-300.0,0.00019818,2]
[366841343,1750502826340,-294.0,0.00019819,2]
[366841344,1750502826361,-300.0,0.00019819,2]
[366841345,1750502826382,-300.0,0.0001982,2]
[366841346,1750502826404,-500.0,0.0001982,2]
[366841347,1750502826425,-500.0,0.0001982,2]
[366841348,1750502826447,-500.0,0.0001982,2]
[366841349,1750502826469,-174.77288761,0.0001982,2]
[366841350,1750502826492,-500.0,0.0001982,2]
[366841351,1750502826513,-184.81959144,0.0001982,2]
[366841352,1750502826537,-500.0,0.0001982,2]
[366841353,1750502826560,-500.0,0.0001982,2]
[366841354,1750502826583,-500.0,0.0001982,2]
[366841355,1750502826603,-500.0,0.0001982,2]
[366841356,1750502826625,-500.0,0.0001982,2]
[366841357,1750502826647,-500.0,0.0001982,2]
[366841358,1750502826667,-282.80421314,0.0001982,2]
[366841359,1750502826690,-500.0,0.0001982,2]
[366841360,1750502826713,-500.0,0.0001982,2]
[366841361,1750502826734,-500.0,0.0001982,2]
[366841362,1750502826754,-538.09651936,0.0001982,2]
[366841363,1750502826776,-500.0,0.0001982,2]
[366841364,1750502826800,-500.0,0.0001982,2]
[366841365,1750502826825,-502.41365617,0.0001982,2]
[366841366,1750502826847,-458.81375142,0.0001982,2]
[366841367,1750502826869,-383.82942793,0.0001982,2]
[366841368,1750502826891,-173.48882016,0.0001982,2]
[366841369,1750502826914,-350.98488642,0.0001982,2]
[366841370,1750502826936,-500.0,0.0001982,2]
[366841371,1750502826958,-500.0,0.0001982,2]
[366841372,1750502826982,-500.0,0.0001982,2]
[366841373,1750502827013,-500.0,0.0001982,2]
[366841374,1750502827039,-500.0,0.0001982,2]
[366841375,1750502827060,-500.0,0.0001982,2]
[366841376,1750502827083,-166.93485068,0.0001982,2]
[366841377,1750502827104,-217.7154605,0.0001982,2]
[366841378,1750502827129,-500.0,0.0001982,2]
[366841379,1750502827152,-500.0,0.0001982,2]
[366841380,1750502827177,-500.0,0.0001982,2]
[366841381,1750502827201,-500.0,0.0001982,2]
[366841382,1750502827224,-500.0,0.0001982,2]
[366841383,1750502827247,-500.0,0.0001982,2]
[366841384,1750502827271,-500.0,0.0001982,2]
[366841385,1750502827294,-500.0,0.0001982,2]
[366841386,1750502827320,-500.0,0.0001982,2]
[366841387,1750502827344,-500.0,0.0001982,2]
[366841388,1750502827368,-500.0,0.0001982,2]
[366841389,1750502827392,-500.0,0.0001982,2]
[366841390,1750502827414,-500.0,0.0001982,2]
[366841391,1750502827434,-500.0,0.0001982,2]
[366841392,1750502827457,-500.0,0.0001982,2]
[366841393,1750502827480,-500.0,0.0001982,2]
[366841394,1750502827503,-500.0,0.0001982,2]
[366841395,1750502827527,-500.0,0.0001982,2]
[366841396,1750502827551,-500.0,0.0001982,2]
[366841397,1750502827577,-395.88309509,0.0001982,2]
[366841398,1750502827599,-38291.86717558,0.00019821,2]
[366841399,1750502827620,-500.0,0.00019822,2]
[366841400,1750502827642,-18048.55,0.00019824,2]
[366841401,1750502827663,-500.0,0.00019873,2]
[366841402,1750502827684,-500.0,0.00019873,2]
[366841403,1750502827705,-184.63444718,0.00019873,2]
[366841404,1750502827726,-500.0,0.00019873,2]
[366841405,1750502827746,-500.0,0.000199,2]
[366841406,1750502827769,-326.77294741,0.000199,2]
[366841407,1750502827791,-500.95406167,0.000199,2]
[366841408,1750502827817,-177.79823368,0.00020096,2]
[366841409,1750502827837,-1000.0,0.00020421,2]
[366841410,1750502827859,-1000.0,0.00020421,2]
[366841411,1750502827880,-165.541,0.00020505,2]
[366841412,1750502827903,-451.15499922,0.00020548,2]
[366841413,1750502827923,-500.0,0.000206,2]
[366841414,1750502827944,-501.83156985,0.000206,2]
[366841415,1750502827964,-500.0,0.000209,2]
[366841416,1750502827985,-1465.71906437,0.00020968,2]
[366841417,1750502828006,-564.2061482,0.00020968,2]
[366841418,1750502828026,-156.587,0.0002111,2]
[366841419,1750502828048,-151.0,0.00021128,2]
[366841420,1750502828070,-1000.0,0.00021148,2]
[366841421,1750502828091,-275.02812527,0.00021165,2]
[366841422,1750502828115,-837.85,0.0002119,10]
[366841423,1750502828136,-502.24203177,0.000212,2]
[366841424,1750502828157,-500.0,0.0002135,2]
[366841425,1750502828179,-501.39040118,0.0002135,2]
[366841426,1750502828200,-501.13706826,0.0002135,2]
[366841427,1750502828220,-500.83076664,0.0002135,2]
[366841428,1750502828242,-1680.0,0.00021439,2]
[366841429,1750502828262,-501.85679149,0.000215,2]
[366841430,1750502828386,-500.0,0.000215,2]
[366841431,1750502828416,-505.94104624,0.00021563,2]
[366841432,1750502828442,-448.4397915,0.00021563,2]
[366841433,1750502828465,-420.0,0.00021584,2]
[366841434,1750502828488,-420.0,0.00021585,2]
[366841435,1750502828511,-1078.08,0.000216,2]
[366841436,1750502828533,-615.48635245,0.00021659,2]
[366841437,1750502828555,-160.0,0.00021659,2]
[366841438,1750502828579,-500.0,0.00021696,2]
[366841439,1750502828602,-1214.24306579,0.000217,2]
[366841440,1750502828624,-1000.0,0.000218,2]
[366841441,1750502828647,-160.0,0.00021834,2]
[366841442,1750502828667,-278.96974137,0.00021898,2]
[366841443,1750502828689,-460.0,0.00021917,2]
[366841444,1750502828709,-169.0,0.00022,2]
[366841445,1750502828731,-230.10342898,0.00022021,2]
[366841446,1750502828753,-160.0,0.00022021,2]
[366841447,1750502828775,-12549.17366507,0.00022021,2]
[366841448,1750502828796,-213.55395994,0.00022021,2]
[366841449,1750502828823,-836.41202323,0.00022047,2]
[366841450,1750502828844,-424.93363889,0.00022047,2]
[366841451,1750502828865,-160.0,0.00022047,2]
[366841452,1750502828886,-160.0,0.00022047,2]
[366841453,1750502828910,-160.0,0.00022047,2]
[366841454,1750502828932,-500.0,0.00022048,2]
[366841455,1750502828954,-168.0,0.0002212,2]
[366841456,1750502828975,-440.0,0.00022191,2]
[366841457,1750502828996,-685.29,0.00022275,3]
[366841458,1750502829019,-151.0,0.00022285,2]
[366841459,1750502829044,-1688.0,0.00022285,2]
[366841460,1750502829065,-5000.0,0.00022285,2]
[366841461,1750502829088,-500.0,0.00022285,2]
[366841462,1750502829109,-500.0,0.00022285,2]
[366841463,1750502829129,-5938.60226604,0.00022285,2]
[366841464,1750502829151,-500.0,0.00022285,2]
[366841465,1750502829176,-500.0,0.00022285,2]
[366841466,1750502829197,-500.0,0.00022285,2]
[366841467,1750502829219,-500.0,0.00022285,2]
[366841468,1750502829240,-500.0,0.00022285,2]
[366841469,1750502829261,-500.0,0.00022285,2]
[366841470,1750502829283,-500.0,0.00022285,2]
[366841471,1750502829305,-500.0,0.00022285,2]
[366841472,1750502829326,-207.4,0.00022285,2]
[366841473,1750502829348,-500.0,0.00022285,2]
[366841474,1750502829369,-500.0,0.00022285,2]
[366841475,1750502829390,-500.0,0.00022285,2]
[366841476,1750502829410,-500.0,0.00022285,2]
[366841477,1750502829432,-500.0,0.00022285,2]
[366841478,1750502829452,-500.0,0.00022285,2]
[366841479,1750502829477,-500.0,0.00022285,2]
[366841480,1750502829499,-500.0,0.00022285,2]
[366841481,1750502829519,-500.0,0.00022285,2]
[366841482,1750502829541,-500.0,0.00022285,2]
[366841483,1750502829562,-500.0,0.00022285,2]
[366841484,1750502829584,-1750.456,0.0002234,2]
[366841485,1750502829604,-1214.24306576,0.00022349,2]
[366841486,1750502829625,-1815.222872,0.00022395,2]
[366841487,1750502829646,-155.19910141,0.0002245,2]
[366841488,1750502829667,-151.0,0.00022452,7]
[366841489,1750502829687,-151.0,0.0002266,7]
[366841490,1750502829708,-154.073374,0.0002266,7]
[366841491,1750502829730,-154.073374,0.0002266,7]
[366841492,1750502829751,-151.0,0.0002266,7]
[366841493,1750502829771,-151.0,0.0002266,7]
[366841494,1750502829793,-151.0,0.0002266,7]
[366841495,1750502829818,-511.39345672,0.000227,2]
[366841496,1750502829838,-504.53416508,0.000227,2]
[366841497,1750502829860,-500.0,0.000227,2]
[366841498,1750502829881,-500.39389899,0.000227,2]
[366841499,1750502829902,-501.47250456,0.000227,2]
[366841500,1750502829922,-500.0,0.000227,2]
[366841501,1750502829943,-220.90659741,0.000227,2]
[366841502,1750502829964,-510.87832922,0.000227,2]
[366841503,1750502829984,-500.0,0.000227,2]
[366841504,1750502830004,-500.0,0.000227,2]
[366841505,1750502830024,-500.0,0.000227,2]
[366841506,1750502830045,-500.0,0.000227,2]
[366841507,1750502830069,-151.0,0.000228,7]
[366841508,1750502830091,-1000.0,0.000228,3]
[366841509,1750502830112,-1000.0,0.000228,4]
[366841510,1750502830134,-1000.0,0.000228,5]
[366841511,1750502830155,-1000.0,0.000228,6]
[366841512,1750502830176,-151.0,0.000228,7]
[366841513,1750502830196,-163.026408,0.000228,7]
[366841514,1750502830218,-168.0,0.00022809,2]
[366841515,1750502830239,-1214.24306576,0.00022999,2]
[366841516,1750502830261,-1078.08,0.00023,7]
[366841517,1750502830282,-160.0,0.00023029,2]
[366841518,1750502830303,-168.0,0.00023179,2]
[366841519,1750502830324,-499.3,0.00023197,2]
[366841520,1750502830346,-500.0,0.00023226,2]
[366841521,1750502830371,-1000.0,0.00023248,2]
[366841522,1750502830394,-501.36770528,0.00023248,2]
[366841523,1750502830415,-1000.0,0.00023248,2]
[366841524,1750502830435,-903.58847854,0.00023248,2]
[366841525,1750502830458,-1000.0,0.00023248,2]
[366841526,1750502830478,-1000.0,0.00023248,2]
[366841527,1750502830497,-553.93400015,0.000233,2]
[366841528,1750502830517,-151.0,0.000233,7]
[366841529,1750502830536,-151.0,0.000233,7]
[366841530,1750502830558,-151.0,0.000233,7]
[366841531,1750502830579,-500.0,0.00023335,2]
[366841532,1750502830598,-151.0,0.00023342,7]
[366841533,1750502830618,-177.2671816,0.00023342,2]
[366841534,1750502830638,-153.0,0.00023342,2]
[366841535,1750502830658,-159.0806219,0.00023342,2]
[366841536,1750502830677,-153.0,0.00023342,2]
[366841537,1750502830697,-574.5372799,0.00023342,2]
[366841538,1750502830717,-203.4276409,0.00023342,2]
[366841539,1750502830737,-574.5372799,0.00023342,2]
[366841540,1750502830758,-178.9325512,0.00023342,2]
[366841541,1750502830778,-177.2671816,0.00023342,2]
[366841542,1750502830800,-159.0806219,0.00023342,2]
[366841543,1750502830822,-574.5372799,0.00023342,2]
[366841544,1750502830842,-574.5372799,0.00023342,2]
[366841545,1750502830862,-177.2671816,0.00023342,2]
[366841546,1750502830882,-159.0806219,0.00023342,2]
[366841547,1750502830998,-177.2671816,0.00023342,2]
[366841548,1750502831020,-159.0806219,0.00023342,2]
[366841549,1750502831041,-574.5372799,0.00023342,2]
[366841550,1750502831061,-351.3252024,0.00023342,2]
[366841551,1750502831083,-158.686655,0.00023342,2]
[366841552,1750502831103,-570.8878675,0.00023342,2]
[366841553,1750502831124,-500.0,0.00023407,2]
[366841554,1750502831144,-500.0,0.00023408,2]
[366841555,1750502831166,-587.0,0.00023507,2]
[366841556,1750502831188,-587.0,0.00023508,2]
[366841557,1750502831209,-362.935431,0.0002352,4]
[366841558,1750502831230,-168.0,0.00023534,2]
[366841559,1750502831252,-4949.48,0.00023599,2]
[366841560,1750502831273,-500.0,0.00023614,2]
[366841561,1750502831293,-500.0,0.00023625,2]
[366841562,1750502831313,-500.0,0.00023628,2]
[366841563,1750502831334,-1214.24306576,0.00023648,2]
[366841564,1750502831356,-215.0738,0.00023654,2]
[366841565,1750502831376,-151.0,0.0002366,7]
[366841566,1750502831397,-151.0,0.0002366,7]
[366841567,1750502831418,-154.073374,0.0002366,7]
[366841568,1750502831440,-154.073374,0.0002366,7]
[366841569,1750502831461,-151.0,0.0002366,7]
[366841570,1750502831482,-151.365617,0.0002366,7]
[366841571,1750502831504,-151.0,0.0002366,7]
[366841572,1750502831524,-151.0,0.0002366,7]
[366841573,1750502831545,-151.0,0.0002366,7]
[366841574,1750502831566,-151.0,0.0002366,7]
[366841575,1750502831587,-151.0,0.0002366,7]
[366841576,1750502831608,-151.0,0.0002366,7]
[366841577,1750502831629,-151.0,0.0002366,7]
[366841578,1750502831651,-238.083132,0.0002366,7]
[366841579,1750502831672,-500.0,0.00023692,2]
[366841580,1750502831693,-500.0,0.00023738,2]
[366841581,1750502831714,-887.04047744,0.00023741,2]
[366841582,1750502831735,-160.577015,0.00023741,7]
[366841583,1750502831756,-160.577015,0.00023741,7]
[366841584,1750502831777,-267.405868,0.00023741,7]
[366841585,1750502831800,-267.405868,0.00023741,7]
[366841586,1750502831823,-151.0,0.00023741,7]
[366841587,1750502831843,-500.0,0.00023789,2]
[366841588,1750502831863,-500.0,0.00023789,2]
[366841589,1750502831884,-500.0,0.00023789,2]
[366841590,1750502831904,-500.5583531,0.00023794,2]
[366841591,1750502831924,-502.45613975,0.00023794,2]
[366841592,1750502831944,-500.0,0.00023794,2]
[366841593,1750502831964,-502.60686411,0.00023794,2]
[366841594,1750502831984,-336.79884493,0.00023794,2]
[366841595,1750502832005,-500.0,0.00023794,2]
[366841596,1750502832027,-377.36263857,0.00023794,2]
[366841597,1750502832048,-500.0,0.00023794,2]
[366841598,1750502832071,-500.0,0.00023794,2]
[366841599,1750502832092,-576.07598178,0.00023794,2]
[366841600,1750502832111,-500.0,0.00023794,2]
[366841601,1750502832132,-500.0,0.00023794,2]
[366841602,1750502832152,-406.36850021,0.00023794,2]
[366841603,1750502832174,-518.09711297,0.00023794,2]
[366841604,1750502832194,-487.07405773,0.00023794,2]
[366841605,1750502832215,-500.0,0.00023794,2]
[366841606,1750502832235,-259.06106922,0.00023794,2]
[366841607,1750502832257,-503.2918241,0.00023796,2]
[366841608,1750502832278,-1500.0,0.00023796,2]
[366841609,1750502832300,-1500.0,0.00023796,2]
[366841610,1750502832320,-1500.0,0.00023796,2]
[366841611,1750502832340,-1000.0,0.000238,7]
[366841612,1750502832360,-961.0,0.000238,2]
[366841613,1750502832382,-500.0,0.000238,2]
[366841614,1750502832404,-500.0,0.000238,2]
[366841615,1750502832424,-500.0,0.000238,2]
[366841616,1750502832445,-500.0,0.000238,2]
[366841617,1750502832466,-500.0,0.000238,2]
[366841618,1750502832486,-293.85068442,0.00023815,2]
[366841619,1750502832507,-654.0,0.00023854,2]
[366841620,1750502832526,-2160.0,0.00023854,2]
[366841621,1750502832545,-409.116,0.00023854,2]
[366841622,1750502832567,-500.0,0.00023869,2]
[366841623,1750502832591,-800.0,0.00023881,2]
[366841624,1750502832612,-151.0,0.00023881,7]
[366841625,1750502832633,-2000.0,0.0002389,7]
[366841626,1750502832655,-2000.0,0.0002389,7]
[366841627,1750502832675,-2000.0,0.0002389,7]
[366841628,1750502832695,-2000.0,0.0002389,7]
[366841629,1750502832716,-2000.0,0.0002389,7]
[366841630,1750502832736,-2000.0,0.0002389,7]
[366841631,1750502832757,-2000.0,0.0002389,7]
[366841632,1750502832777,-2000.0,0.0002389,7]
[366841633,1750502832800,-2000.0,0.0002389,7]
[366841634,1750502832823,-2000.0,0.0002389,7]
[366841635,1750502832843,-1520.73504145,0.0002389,7]
[366841636,1750502832863,-154.005717,0.0002389,7]
[366841637,1750502832883,-151.0,0.0002389,7]
[366841638,1750502832904,-151.0,0.0002389,7]
[366841639,1750502832925,-151.0,0.0002389,7]
[366841640,1750502832946,-160.577015,0.0002389,7]
[366841641,1750502832967,-160.577015,0.0002389,7]
[366841642,1750502832988,-151.0,0.0002389,7]
[366841643,1750502833009,-151.0,0.0002389,7]
[366841644,1750502833031,-896.200848,0.0002389,7]
[366841645,1750502833054,-896.200848,0.0002389,7]
[366841646,1750502833077,-151.0,0.0002389,7]
[366841647,1750502833100,-151.0,0.0002389,7]
[366841648,1750502833122,-267.405868,0.0002389,7]
[366841649,1750502833143,-267.405868,0.0002389,7]
[366841650,1750502833164,-151.0,0.0002389,7]
[366841651,1750502833186,-151.0,0.0002389,7]
[366841652,1750502833207,-202.29,0.000239,2]
[366841653,1750502833230,-168.0,0.00023913,2]
[366841654,1750502833252,-500.0,0.00023943,2]
[366841655,1750502833273,-171.82756404,0.00023945,3]
[366841656,1750502833295,-151.0,0.00023945,3]
[366841657,1750502833317,-151.0,0.00023945,3]
[366841658,1750502833339,-166.0,0.00023945,3]
[366841659,1750502833451,-151.0,0.00023945,3]
[366841660,1750502833471,-166.0,0.00023945,3]
[366841661,1750502833491,-151.0,0.00023945,3]
[366841662,1750502833510,-172.0,0.00023945,3]
[366841663,1750502833531,-151.0,0.00023945,3]
[366841664,1750502833552,-151.0,0.00023945,3]
[366841665,1750502833573,-151.0,0.00023945,3]
[366841666,1750502833594,-151.0,0.00023945,3]
[366841667,1750502833615,-151.0,0.00023945,3]
[366841668,1750502833635,-151.0,0.00023945,3]
[366841669,1750502833656,-151.0,0.00023945,3]
[366841670,1750502833676,-151.0,0.00023945,3]
[366841671,1750502833697,-1748.0,0.00023945,3]
[366841672,1750502833717,-151.0,0.00023945,3]
[366841673,1750502833739,-1748.0,0.00023945,3]
[366841674,1750502833759,-151.0,0.00023945,3]
[366841675,1750502833780,-1748.0,0.00023945,3]
[366841676,1750502833804,-151.0,0.00023945,3]
[366841677,1750502833826,-1748.0,0.00023945,3]
[366841678,1750502833848,-151.0,0.00023945,3]
[366841679,1750502833869,-1748.0,0.00023945,3]
[366841680,1750502833891,-151.0,0.00023945,3]
[366841681,1750502833913,-1748.0,0.00023945,3]
[366841682,1750502833933,-151.0,0.00023945,3]
[366841683,1750502833953,-1748.0,0.00023945,3]
[366841684,1750502833975,-151.0,0.00023945,3]
[366841685,1750502833997,-1748.0,0.00023945,3]
[366841686,1750502834017,-151.0,0.00023945,3]
[366841687,1750502834038,-282.4290819,0.00023945,3]
[366841688,1750502834059,-151.0,0.00023945,3]
[366841689,1750502834080,-161.89137295,0.00023945,3]
[366841690,1750502834102,-317.0,0.00023945,3]
[366841691,1750502834123,-317.0,0.00023945,3]
[366841692,1750502834147,-317.0,0.00023945,3]
[366841693,1750502834168,-317.0,0.00023945,3]
[366841694,1750502834191,-317.0,0.00023945,3]
[366841695,1750502834212,-317.0,0.00023945,3]
[366841696,1750502834234,-317.0,0.00023945,3]
[366841697,1750502834256,-317.0,0.00023945,3]
[366841698,1750502834277,-317.0,0.00023945,3]
[366841699,1750502834298,-320.81141079,0.00023945,3]
[366841700,1750502834318,-152.091168,0.00023945,7]
[366841701,1750502834339,-151.0,0.00023945,7]
[366841702,1750502834360,-152.962278,0.00023945,7]
[366841703,1750502834381,-846.23824438,0.00023945,3]
[366841704,1750502834403,-12549.17366507,0.00023945,3]
[366841705,1750502834424,-151.0,0.00023945,7]
[366841706,1750502834446,-160.577015,0.00023945,7]
[366841707,1750502834467,-160.577015,0.00023945,7]
[366841708,1750502834488,-151.943504,0.00023945,7]
[366841709,1750502834508,-151.0,0.00023945,7]
[366841710,1750502834529,-896.200848,0.00023945,7]
[366841711,1750502834550,-896.200848,0.00023945,7]
[366841712,1750502834571,-151.0,0.00023945,7]
[366841713,1750502834591,-151.0,0.00023945,7]
[366841714,1750502834612,-267.405868,0.00023945,7]
[366841715,1750502834633,-267.405868,0.00023945,7]
[366841716,1750502834654,-151.0,0.00023945,7]
[366841717,1750502834675,-153.420821,0.00023945,7]
[366841718,1750502834695,-424.93363889,0.0002395,3]
[366841719,1750502834715,-500.0,0.00023965,2]
[366841720,1750502834735,-500.0,0.00023969,2]
[366841721,1750502834756,-500.0,0.00023977,2]
[366841722,1750502834776,-151.0,0.00023982,2]
[366841723,1750502834799,-754.0,0.00023982,2]
[366841724,1750502834821,-500.0,0.00023982,2]
[366841725,1750502834841,-151.72053977,0.00023982,2]
[366841726,1750502834860,-151.0,0.00023982,2]
[366841727,1750502834880,-151.0,0.00023982,2]
[366841728,1750502834901,-500.0,0.00023982,2]
[366841729,1750502834922,-151.0,0.00023982,2]
[366841730,1750502834942,-151.0,0.00023982,2]
[366841731,1750502834963,-151.0,0.00023982,2]
[366841732,1750502834984,-199.05133219,0.00023982,2]
[366841733,1750502835005,-500.0,0.00023982,2]
[366841734,1750502835025,-151.0,0.00023982,2]
[366841735,1750502835045,-151.0,0.00023982,2]
[366841736,1750502835066,-151.0,0.00023982,2]
[366841737,1750502835087,-243.818317,0.00023982,2]
[366841738,1750502835108,-151.0,0.00023982,2]
[366841739,1750502835131,-151.0,0.00023985,7]
[366841740,1750502835152,-151.0,0.00023985,7]
[366841741,1750502835173,-151.0,0.00023985,7]
[366841742,1750502835194,-151.0,0.00023985,7]
[366841743,1750502835215,-151.0,0.00023985,7]
[366841744,1750502835236,-151.0,0.00023985,7]
[366841745,1750502835258,-151.0,0.00023985,7]
[366841746,1750502835280,-151.0,0.00023985,7]
[366841747,1750502835301,-268.265192,0.00023985,7]
[366841748,1750502835322,-151.0,0.00023985,7]
[366841749,1750502835342,-152.160898,0.00023985,7]
[366841750,1750502835362,-151.0,0.00023985,7]
[366841751,1750502835384,-151.0,0.00023985,7]
[366841752,1750502835406,-151.0,0.00023985,7]
[366841753,1750502835427,-5000.0,0.00023995,2]
[366841754,1750502835449,-151.0,0.00023995,7]
[366841755,1750502835471,-151.0,0.00023995,7]
[366841756,1750502835492,-151.0,0.00023999,7]
[366841757,1750502835513,-500.0,0.00023999,2]
[366841758,1750502835533,-12589.21127983,0.00024,2]
[366841759,1750502835553,-244.033298,0.00024,7]
[366841760,1750502835575,-151.0,0.00024,7]
[366841761,1750502835596,-151.0,0.00024,7]
[366841762,1750502835616,-151.0,0.00024,7]
[366841763,1750502835636,-151.0,0.00024,7]
[366841764,1750502835657,-151.0,0.00024,7]
[366841765,1750502835678,-151.0,0.00024,7]
[366841766,1750502835778,-151.0,0.00024,7]
[366841767,1750502835802,-151.0,0.00024,7]
[366841768,1750502835826,-151.0,0.00024,7]
[366841769,1750502835849,-151.0,0.00024,7]
[366841770,1750502835871,-151.0,0.00024,7]
[366841771,1750502835895,-154.073374,0.00024,7]
[366841772,1750502835917,-154.073374,0.00024,7]
[366841773,1750502835940,-388.844968,0.00024,7]
[366841774,1750502835961,-1823.63519311,0.00024,2]
[366841775,1750502835983,-151.0,0.00024,7]
[366841776,1750502836005,-151.0,0.00024,7]
[366841777,1750502836026,-276.375317,0.00024,7]
[366841778,1750502836048,-151.0,0.00024,7]
[366841779,1750502836070,-151.0,0.00024,7]
[366841780,1750502836091,-152.73524,0.00024,7]
[366841781,1750502836112,-151.0,0.00024,7]
[366841782,1750502836134,-151.0,0.00024,7]
[366841783,1750502836157,-151.0,0.00024,7]
[366841784,1750502836178,-151.0,0.00024,7]
[366841785,1750502836199,-265.966829,0.00024,7]
[366841786,1750502836220,-523.9660634,0.00024,3]
[366841787,1750502836242,-160.577015,0.00024,7]
[366841788,1750502836264,-160.577015,0.00024,7]
[366841789,1750502836286,-896.200848,0.00024,7]
[366841790,1750502836309,-896.200848,0.00024,7]
[366841791,1750502836332,-151.0,0.00024,7]
[366841792,1750502836353,-151.0,0.00024,7]
[366841793,1750502836375,-267.405868,0.00024,7]
[366841794,1750502836396,-267.405868,0.00024,7]
[366841795,1750502836418,-200.02393122,0.00024009,2]
[366841796,1750502836440,-754.0,0.00024009,2]
[366841797,1750502836460,-501.01407172,0.00024009,2]
[366841798,1750502836482,-151.0,0.00024009,2]
[366841799,1750502836503,-200.56989288,0.00024009,2]
[366841800,1750502836523,-500.0,0.00024009,2]
[366841801,1750502836544,-152.52321084,0.00024009,2]
[366841802,1750502836566,-151.3394674,0.00024009,2]
[366841803,1750502836587,-151.63608028,0.00024009,2]
[366841804,1750502836610,-500.0,0.00024009,2]
[366841805,1750502836631,-151.0,0.00024009,2]
[366841806,1750502836653,-151.0,0.00024009,2]
[366841807,1750502836674,-198.0,0.00024009,2]
[366841808,1750502836695,-151.0,0.00024009,2]
[366841809,1750502836716,-754.0,0.00024037,2]
[366841810,1750502836737,-151.0,0.00024037,2]
[366841811,1750502836759,-500.0,0.00024037,2]
[366841812,1750502836781,-500.0,0.00024037,2]
[366841813,1750502836814,-151.0,0.00024037,2]
[366841814,1750502836838,-151.0,0.00024037,2]
[366841815,1750502836860,-151.0,0.00024037,2]
[366841816,1750502836882,-151.0,0.00024044,7]
[366841817,1750502836904,-151.0,0.00024044,7]
[366841818,1750502836927,-754.0,0.00024064,2]
[366841819,1750502836948,-172.15645267,0.00024064,2]
[366841820,1750502836969,-302.0,0.00024064,2]
[366841821,1750502836990,-151.0,0.00024064,2]
[366841822,1750502837012,-151.0,0.00024064,2]
[366841823,1750502837033,-251.21385254,0.00024064,2]
[366841824,1750502837055,-151.0,0.00024072,10]
[366841825,1750502837077,-151.0,0.00024072,10]
[366841826,1750502837098,-206.49189023,0.00024072,10]
[366841827,1750502837120,-197.2588658,0.00024079,2]
[366841828,1750502837247,-63.56423622,0.00024079,2]
[366841829,1750502837269,-754.0,0.00024092,2]
[366841830,1750502837292,-240.0,0.00024092,2]
[366841831,1750502837312,-245.0,0.00024092,2]
[366841832,1750502837332,-151.0,0.00024099,10]
[366841833,1750502837352,-151.0,0.00024099,10]
[366841834,1750502837372,-2000.0,0.000241,2]
[366841835,1750502837391,-2000.0,0.000241,2]
[366841836,1750502837411,-754.0,0.00024119,2]
[366841837,1750502837432,-189.1712393,0.00024127,10]